bitfinex/quotes_BTCUSD_20241211
["timestamp","ask_amount","ask_price","bid_price","bid_amount"]
[1733897907687,0.181,97711.0,97710.0,0.0002146]
[1733897907906,0.18,97711.0,97710.0,0.0012146]
[1733897908112,0.181,97711.0,97710.0,0.0012146]
[1733897908556,0.181,97711.0,97710.0,0.0002146]
[1733897908557,0.18,97711.0,97710.0,0.0002146]
[1733897908759,0.18,97711.0,97710.0,0.0012146]
[1733897909580,0.181,97711.0,97710.0,0.0012146]
[1733897910016,0.181,97711.0,97710.0,0.0002146]
[1733897910526,0.181,97711.0,97710.0,0.0012146]
[1733897910768,0.181,97711.0,97710.0,0.0002146]
[1733897911250,0.181,97711.0,97710.0,0.0012146]
[1733897911498,0.18,97711.0,97710.0,0.0012146]
[1733897911734,0.181,97711.0,97710.0,0.0012146]
[1733897912716,0.18,97711.0,97710.0,0.0012146]
[1733897912958,0.181,97711.0,97710.0,0.0012146]
[1733897913200,0.181,97711.0,97710.0,0.0002146]
[1733897913477,0.18,97711.0,97710.0,0.0012146]
[1733897914983,0.181,97711.0,97710.0,0.0012146]
[1733897915223,0.18,97711.0,97710.0,0.0012146]
[1733897915438,0.181,97711.0,97710.0,0.0012146]
[1733897915960,0.18,97711.0,97710.0,0.0012146]
[1733897916183,0.181,97711.0,97710.0,0.0002146]
[1733897916428,0.181,97711.0,97710.0,0.0012146]
[1733897916683,0.27300575,97711.0,97710.0,0.0012146]
[1733897918478,0.27200575,97711.0,97710.0,0.0012146]
[1733897918688,0.18,97711.0,97710.0,0.0012146]
[1733897918897,0.181,97711.0,97710.0,0.0012146]
[1733897919095,0.181,97711.0,97710.0,0.0002146]
[1733897919294,0.181,97711.0,97710.0,0.0012146]
[1733897919470,0.31900863,97711.0,97710.0,0.0012146]
[1733897919681,0.52094716,97711.0,97710.0,0.0012146]
[1733897919898,0.70495866,97711.0,97710.0,0.0012146]
[1733897920105,0.70495866,97711.0,97710.0,0.0002146]
[1733897920300,0.70513236,97711.0,97710.0,0.0002146]
[1733897920571,0.70513236,97711.0,97710.0,0.0012146]
[1733897921088,0.70513236,97711.0,97710.0,0.0002146]
[1733897921512,0.75511637,97711.0,97710.0,0.0002146]
[1733897921725,0.70413236,97711.0,97710.0,0.0002146]
[1733897921928,0.51994858,97711.0,97710.0,0.0002146]
[1733897922358,0.5209578,97711.0,97710.0,0.0002146]
[1733897922780,0.5199578,97711.0,97710.0,0.0002146]
[1733897923000,0.5209578,97711.0,97710.0,0.0012146]
[1733897923215,0.70514158,97711.0,97710.0,0.0012146]
[1733897923422,0.70514158,97711.0,97710.0,0.0002146]
[1733897923666,0.52095622,97711.0,97710.0,0.0012146]
[1733897923880,0.31913739,97711.0,97710.0,0.0012146]
[1733897924084,0.181,97711.0,97710.0,0.0002146]
[1733897924298,0.52095496,97711.0,97710.0,0.0002146]
[1733897924509,0.52095496,97711.0,97710.0,0.0012146]
[1733897924977,0.16813898,97711.0,97710.0,0.0012146]
[1733897925191,0.03,97711.0,97710.0,0.0012146]
[1733897925402,0.031,97711.0,97710.0,0.0012146]
[1733897925618,0.03,97711.0,97710.0,0.0012146]
[1733897925827,0.03,97711.0,97710.0,0.0002146]
[1733897926293,0.03,97711.0,97710.0,0.0012146]
[1733897926502,0.03,97711.0,97710.0,0.0042146]
[1733897926720,0.03,97711.0,97710.0,0.0032146]
[1733897927178,0.234685,97711.0,97710.0,0.0032146]
[1733897927390,0.234685,97711.0,97710.0,0.0002146]
[1733897927820,0.234685,97711.0,97710.0,0.0042146]
[1733897928436,0.234685,97711.0,97710.0,0.0072146]
[1733897928650,0.234685,97711.0,97710.0,0.0042146]
[1733897929113,0.234685,97711.0,97710.0,0.0032146]
[1733897929333,0.234685,97711.0,97710.0,0.0062146]
[1733897929764,0.234685,97711.0,97710.0,0.0032146]
[1733897929972,0.234685,97711.0,97710.0,0.0002146]
[1733897930189,0.234685,97711.0,97710.0,0.0062146]
[1733897930626,0.234685,97711.0,97710.0,0.0032146]
[1733897931079,0.234685,97711.0,97710.0,0.0062146]
[1733897931744,0.27964582,97711.0,97710.0,0.0062146]
[1733897932175,0.27964582,97711.0,97687.0,0.01040802]
[1733897932176,0.204725,97692.0,97685.0,0.09165164]
[1733897932390,0.204725,97692.0,97680.0,0.18347468]
[1733897932391,0.03,97691.0,97680.0,0.0001714]
[1733897932600,0.17323835,97691.0,97680.0,0.0001714]
[1733897933085,0.03514658,97691.0,97680.0,0.0001714]
[1733897933510,0.03514658,97691.0,97690.0,0.00472036]
[1733897933924,0.04473369,97691.0,97690.0,0.00372036]
[1733897934166,0.04473369,97691.0,97690.0,0.00472036]
[1733897934815,0.05501592,97691.0,97690.0,0.00472036]
[1733897935461,0.05501592,97691.0,97690.0,0.00172036]
[1733897935675,0.05501592,97691.0,97690.0,0.00272036]
[1733897936101,0.05501264,97691.0,97690.0,0.00272036]
[1733897937608,0.14707911,97691.0,97690.0,0.00272036]
[1733897938289,0.05501264,97691.0,97690.0,0.00272036]
[1733897939408,0.04542881,97691.0,97690.0,0.00172036]
[1733897939619,0.0780045,97691.0,97690.0,0.00172036]
[1733897939835,0.0800045,97691.0,97690.0,0.00172036]
[1733897940255,0.0800045,97691.0,97690.0,0.00072036]
[1733897940681,0.0780045,97691.0,97690.0,0.00072036]
[1733897940901,0.0550045,97691.0,97690.0,0.00072036]
[1733897941115,0.0570045,97691.0,97690.0,0.00072036]
[1733897941545,0.05700237,97691.0,97690.0,0.00072036]
[1733897942223,0.05700237,97691.0,97690.0,0.00172036]
[1733897944877,0.04742881,97691.0,97690.0,0.00172036]
[1733897945125,0.05699784,97691.0,97690.0,0.00172036]
[1733897945368,0.08956687,97691.0,97690.0,0.00172036]
[1733897945601,0.05699784,97691.0,97690.0,0.00172036]
[1733897947010,0.07230657,97691.0,97690.0,0.00172036]
[1733897948971,0.06202434,97691.0,97690.0,0.00172036]
[1733897949854,0.04671561,97691.0,97690.0,0.00072036]
[1733897950320,0.04471561,97691.0,97690.0,0.00372036]
[1733897950742,0.04471561,97691.0,97690.0,0.00772036]
[1733897950965,0.06002372,97691.0,97690.0,0.00372036]
[1733897951392,0.06002372,97691.0,97690.0,0.00272036]
[1733897951606,0.06002372,97691.0,97690.0,0.00072036]
[1733897951825,0.06002372,97691.0,97690.0,0.00272036]
[1733897952286,0.06002372,97691.0,97690.0,0.00072036]
[1733897952697,0.06002372,97691.0,97690.0,0.00272036]
[1733897953323,0.06002372,97691.0,97690.0,0.00472036]
[1733897953564,0.06002372,97691.0,97690.0,0.00272036]
[1733897953998,0.06002372,97691.0,97690.0,0.00472036]
[1733897954441,0.00514658,97691.0,97690.0,0.00472036]
[1733897954657,0.04530866,97691.0,97690.0,0.00472036]
[1733897954882,0.05986474,97691.0,97690.0,0.00472036]
[1733897955089,0.05986474,97691.0,97690.0,0.08492036]
[1733897956614,0.04455608,97691.0,97690.0,0.08492036]
[1733897957670,0.03498817,97691.0,97690.0,0.08492036]
[1733897958103,0.04456149,97691.0,97690.0,0.08492036]
[1733897958949,0.04456149,97691.0,97690.0,0.1902456]
[1733897959375,0.03957332,97691.0,97690.0,0.1902456]
[1733897960030,0.04456149,97691.0,97690.0,0.1902456]
[1733897961289,0.04456149,97691.0,97690.0,0.00472036]
[1733897964210,0.03498817,97691.0,97690.0,0.00472036]
[1733897964426,0.05415236,97691.0,97690.0,0.00472036]
[1733897964638,0.04457013,97691.0,97690.0,0.00472036]
[1733897965705,0.04457013,97691.0,97690.0,0.1100456]
[1733897965910,0.04457013,97691.0,97690.0,0.2387456]
[1733897966112,0.03958196,97691.0,97690.0,0.2387456]
[1733897969189,0.03958196,97691.0,97690.0,0.2367456]
[1733897969392,0.03,97691.0,97690.0,0.2367456]
[1733897969984,0.03,97691.0,97690.0,0.2347456]
[1733897970411,0.03,97691.0,97690.0,0.2387456]
[1733897970867,0.03,97691.0,97690.0,0.2397456]
[1733897971097,0.03,97691.0,97690.0,0.2347456]
[1733897971300,0.03,97691.0,97690.0,0.2397456]
[1733897971531,0.03,97691.0,97690.0,0.2477456]
[1733897971532,0.031,97691.0,97690.0,0.2477456]
[1733897971738,0.031,97691.0,97690.0,0.2427456]
[1733897971942,0.031,97691.0,97690.0,0.2487456]
[1733897972351,0.032,97691.0,97690.0,0.2577456]
[1733897972554,0.03,97691.0,97690.0,0.3907456]
[1733897973383,0.03,97691.0,97690.0,0.3847456]
[1733897973587,0.03,97691.0,97690.0,0.5908746]
[1733897973793,0.03,97691.0,97690.0,0.5968746]
[1733897977167,0.03,97691.0,97690.0,0.7468746]
[1733897978226,0.03,97691.0,97690.0,0.7408746]
[1733897978643,8.58e-05,97700.0,97694.0,0.12]
[1733897978853,8.58e-05,97700.0,97699.0,0.31631]
[1733897979068,8.58e-05,97700.0,97699.0,0.42163524]
[1733897980947,8.58e-05,97700.0,97699.0,0.42963524]
[1733897981125,0.0010858,97700.0,97699.0,0.42963524]
[1733897981554,8.58e-05,97700.0,97699.0,0.42963524]
[1733897981753,8.58e-05,97700.0,97699.0,0.43863524]
[1733897981956,0.0010858,97700.0,97699.0,0.43863524]
[1733897982833,0.0010858,97700.0,97699.0,0.58863524]
[1733897983664,0.0010858,97700.0,97699.0,0.91692059]
[1733897986458,0.0010858,97700.0,97699.0,1.45342059]
[1733897992490,0.03,97719.0,97718.0,0.23467]
[1733897992693,0.03,97719.0,97718.0,0.33999524]
[1733897993953,0.031,97719.0,97718.0,0.34999524]
[1733897995403,0.031,97719.0,97718.0,0.34599524]
[1733897995610,0.031,97719.0,97718.0,0.35299524]
[1733897996019,0.03,97719.0,97718.0,0.34699524]
[1733897996231,0.03,97719.0,97718.0,0.35599524]
[1733897996446,0.03,97719.0,97718.0,0.15132524]
[1733897996872,0.11996652,97719.0,97718.0,0.15132524]
[1733897997301,0.12510927,97719.0,97718.0,0.15132524]
[1733897997504,0.12510927,97719.0,97718.0,0.046]
[1733897997932,0.17330927,97719.0,97718.0,0.046]
[1733897998349,0.17330927,97719.0,97718.0,0.039]
[1733897998559,0.17330927,97719.0,97718.0,0.042]
[1733897998770,0.17330927,97719.0,97718.0,0.033]
[1733897998977,0.17330927,97719.0,97718.0,0.038]
[1733897999413,0.17330927,97719.0,97718.0,0.033]
[1733897999621,0.17331726,97719.0,97718.0,0.03]
[1733897999864,0.17331726,97719.0,97718.0,0.032]
[1733898000085,0.17331726,97719.0,97718.0,0.034]
[1733898000333,0.20331726,97719.0,97718.0,0.034]
[1733898000580,0.20331726,97719.0,97718.0,0.032]
[1733898000800,0.22631726,97719.0,97718.0,0.032]
[1733898001892,0.22632111,97719.0,97718.0,0.032]
[1733898002104,0.22632111,97719.0,97718.0,0.03]
[1733898002319,0.22632111,97719.0,97718.0,0.032]
[1733898002742,0.22632111,97719.0,97718.0,0.034]
[1733898002955,0.22632111,97719.0,97718.0,0.03]
[1733898003201,0.37632111,97719.0,97718.0,0.03]
[1733898003427,0.37832111,97719.0,97718.0,0.03]
[1733898003658,0.37632111,97719.0,97718.0,0.03]
[1733898003875,0.173,97718.0,97683.0,0.03]
[1733898004144,0.03,97696.0,97692.0,0.03]
[1733898004352,0.03,97696.0,97694.0,0.03]
[1733898004560,0.00511607,97695.0,97694.0,0.03]
[1733898005630,0.04468645,97695.0,97694.0,0.03]
[1733898006469,0.04468645,97695.0,97694.0,0.035]
[1733898006893,0.04468645,97695.0,97694.0,0.037]
[1733898007305,0.03511607,97695.0,97694.0,0.042]
[1733898007539,0.04468645,97695.0,97694.0,0.042]
[1733898007746,0.03511607,97695.0,97694.0,0.042]
[1733898007952,0.04468645,97695.0,97694.0,0.042]
[1733898008161,0.03511607,97695.0,97694.0,0.042]
[1733898011708,0.03,97695.0,97694.0,0.042]
[1733898012191,0.03506794,97695.0,97694.0,0.042]
[1733898014203,0.03506794,97695.0,97694.0,0.43104524]
[1733898014925,0.03,97695.0,97694.0,0.43104524]
[1733898021855,0.03,97695.0,97694.0,0.44142566]
[1733898022602,8.58e-05,97700.0,97699.0,0.23471]
[1733898022895,8.58e-05,97700.0,97699.0,0.34003524]
[1733898024555,8.58e-05,97700.0,97699.0,0.34403524]
[1733898024812,8.58e-05,97700.0,97699.0,0.34903524]
[1733898026739,8.58e-05,97700.0,97699.0,0.14432524]
[1733898033166,0.04047384,97700.0,97699.0,0.14432524]
[1733898037086,0.0300858,97700.0,97699.0,0.14432524]
[1733898037320,0.0300858,97700.0,97699.0,0.26502524]
[1733898038039,0.0300858,97700.0,97699.0,0.35247927]
[1733898038790,0.0300858,97700.0,97699.0,0.26102524]
[1733898039012,0.0300858,97700.0,97699.0,0.25602524]
[1733898039242,0.0300858,97700.0,97699.0,0.26502524]
[1733898039690,0.0300858,97700.0,97699.0,0.26602524]
[1733898040129,0.0300858,97700.0,97699.0,0.26502524]
[1733898040308,0.0300858,97700.0,97699.0,0.36144666]
[1733898040508,0.0300858,97700.0,97699.0,0.27002524]
[1733898043255,0.0300858,97700.0,97699.0,0.67717048]
[1733898044491,0.0300858,97700.0,97699.0,0.54002524]
[1733898047359,0.0300858,97700.0,97699.0,0.63142569]
[1733898049313,0.0300858,97700.0,97699.0,0.51142569]
[1733898050397,8.58e-05,97700.0,97699.0,0.51142569]
[1733898050836,8.58e-05,97700.0,97699.0,0.42002524]
[1733898054675,8.58e-05,97720.0,97701.0,0.03]
[1733898054676,0.03,97720.0,97701.0,0.03]
[1733898054879,0.03,97720.0,97716.0,0.03]
[1733898054880,0.01041999,97719.0,97716.0,0.03]
[1733898055093,0.03,97718.0,97717.0,0.13532524]
[1733898056534,0.03,97718.0,97717.0,0.14032524]
[1733898056744,0.03,97718.0,97717.0,0.14132524]
[1733898056956,0.03,97718.0,97717.0,0.13632524]
[1733898057157,0.03,97718.0,97717.0,0.14232524]
[1733898057916,0.03,97718.0,97717.0,0.14132524]
[1733898058077,0.1384,97718.0,97717.0,0.036]
[1733898058279,0.2091,97718.0,97717.0,0.038]
[1733898058506,0.21952104,97718.0,97717.0,0.032]
[1733898058726,0.21952104,97718.0,97717.0,0.03]
[1733898058942,0.21952104,97718.0,97717.0,0.037]
[1733898059159,0.21952104,97718.0,97717.0,0.031]
[1733898059602,0.21952104,97718.0,97717.0,0.03]
[1733898060536,0.14112104,97718.0,97717.0,0.03]
[1733898060746,0.42699104,97718.0,97717.0,0.03]
[1733898066606,0.22232104,97718.0,97717.0,0.03]
[1733898066827,0.42699104,97718.0,97717.0,0.03]
[1733898067029,0.42699104,97718.0,97680.0,0.0001714]
[1733898067030,0.264727,97691.0,97680.0,0.0001714]
[1733898067662,0.27508509,97691.0,97680.0,0.0001714]
[1733898068606,0.27508509,97691.0,97690.0,0.00372036]
[1733898069113,0.27508509,97691.0,97690.0,0.00472036]
[1733898069906,0.27508509,97691.0,97690.0,0.03572036]
[1733898072153,0.35628509,97691.0,97690.0,0.03572036]
[1733898072904,0.35628509,97691.0,97690.0,0.03172036]
[1733898073330,0.35628509,97691.0,97690.0,0.03072036]
[1733898073755,0.35338509,97691.0,97690.0,0.03072036]
[1733898074827,0.35438509,97691.0,97690.0,0.03072036]
[1733898075033,0.37738509,97691.0,97690.0,0.03072036]
[1733898075238,0.42378509,97691.0,97690.0,0.03072036]
[1733898075445,0.57478509,97691.0,97690.0,0.03072036]
[1733898075654,0.72478509,97691.0,97690.0,0.03072036]
[1733898075870,0.93521362,97691.0,97690.0,0.03072036]
[1733898076122,0.82911033,97691.0,97690.0,0.03072036]
[1733898076571,0.98011033,97691.0,97690.0,0.03072036]
[1733898076898,1.5021239,97691.0,97690.0,0.00072036]
[1733898077341,1.11763537,97691.0,97690.0,0.00072036]
[1733898077802,0.98111033,97691.0,97690.0,0.00072036]
[1733898078013,1.08621362,97691.0,97690.0,0.00072036]
[1733898078227,1.08821362,97691.0,97690.0,0.00072036]
[1733898078637,1.08421362,97691.0,97690.0,0.00072036]
[1733898078954,1.08821362,97691.0,97690.0,0.00072036]
[1733898079159,1.17985614,97691.0,97690.0,0.00072036]
[1733898079384,0.98311033,97691.0,97690.0,0.00072036]
[1733898079584,0.83311033,97691.0,97690.0,0.00072036]
[1733898079786,0.98311033,97691.0,97690.0,0.00072036]
[1733898081792,0.83311033,97691.0,97690.0,0.00072036]
[1733898082006,0.55478509,97691.0,97690.0,0.00072036]
[1733898082211,0.52478509,97691.0,97690.0,0.00072036]
[1733898082523,0.35738509,97691.0,97690.0,0.00072036]
[1733898082731,0.35338509,97691.0,97690.0,0.00072036]
[1733898083133,0.35538509,97691.0,97690.0,0.00072036]
[1733898083558,0.35338509,97691.0,97690.0,0.00072036]
[1733898084898,0.35538509,97691.0,97690.0,0.00072036]
[1733898085119,0.35338509,97691.0,97690.0,0.00072036]
[1733898085458,0.35438509,97691.0,97690.0,0.00072036]
[1733898086331,0.27318509,97691.0,97690.0,0.00072036]
[1733898087709,0.27218509,97691.0,97690.0,0.00072036]
[1733898088335,0.27218509,97691.0,97690.0,0.00172036]
[1733898092609,0.04035809,97691.0,97690.0,0.00172036]
[1733898093469,0.04035809,97691.0,97690.0,0.2365456]
[1733898093674,0.03,97691.0,97690.0,0.4402746]
[1733898095151,0.03,97691.0,97690.0,0.4422746]
[1733898095556,0.03,97691.0,97690.0,0.2375456]
[1733898095763,0.03,97691.0,97690.0,0.2405456]
[1733898096168,0.03,97691.0,97690.0,0.2445456]
[1733898096581,0.03,97691.0,97690.0,0.2405456]
[1733898096782,0.03,97691.0,97690.0,0.2495456]
[1733898098483,0.03,97691.0,97690.0,0.2445456]
[1733898098686,0.03,97691.0,97690.0,0.2355456]
[1733898098889,0.03,97691.0,97690.0,0.2445456]
[1733898099081,0.03,97691.0,97690.0,0.2495456]
[1733898099719,0.03,97698.0,97692.0,0.03]
[1733898099918,0.03,97698.0,97694.0,0.03]
[1733898100128,0.03,97696.0,97695.0,0.15832524]
[1733898101937,0.03,97696.0,97695.0,0.16232524]
[1733898102486,0.03,97696.0,97695.0,0.17132524]
[1733898102896,0.03850573,97696.0,97695.0,0.17132524]
[1733898104093,0.03,97696.0,97695.0,0.17132524]
[1733898107317,8.58e-05,97700.0,97695.0,0.17132524]
[1733898107689,8.58e-05,97700.0,97697.0,0.053]
[1733898109104,8.58e-05,97700.0,97697.0,0.061]
[1733898109485,0.0300858,97700.0,97697.0,0.061]
[1733898109918,0.0300858,97700.0,97697.0,0.053]
[1733898110116,0.0300858,97700.0,97699.0,0.053]
[1733898110328,0.0300858,97700.0,97699.0,0.15832524]
[1733898110539,0.0300858,97700.0,97699.0,0.24132524]
[1733898111120,0.0060858,97700.0,97699.0,0.24132524]
[1733898111336,0.0060858,97700.0,97699.0,0.24432524]
[1733898112668,0.0060858,97700.0,97699.0,0.25232524]
[1733898118081,0.0061716,97700.0,97699.0,0.25232524]
[1733898132482,8.58e-05,97720.0,97701.0,0.03]
[1733898132483,0.01965902,97711.0,97701.0,0.03]
[1733898132690,0.01965902,97711.0,97710.0,0.234687]
[1733898132850,0.01965902,97711.0,97710.0,0.34001224]
[1733898134530,0.01965902,97711.0,97710.0,0.34301224]
[1733898134733,0.01965902,97711.0,97710.0,0.36601224]
[1733898134978,8.58e-05,97720.0,97719.0,0.234668]
[1733898135179,8.58e-05,97720.0,97719.0,0.33999324]
[1733898136173,8.58e-05,97720.0,97719.0,0.34299324]
[1733898136934,8.58e-05,97720.0,97719.0,0.36599324]
[1733898137159,8.58e-05,97720.0,97719.0,0.44239324]
[1733898137361,8.58e-05,97720.0,97719.0,0.45039324]
[1733898138382,8.58e-05,97720.0,97719.0,0.59739324]
[1733898138818,8.58e-05,97720.0,97719.0,0.60039324]
[1733898139036,8.58e-05,97720.0,97719.0,0.59239324]
[1733898139243,8.58e-05,97720.0,97719.0,0.58939324]
[1733898139469,8.58e-05,97720.0,97719.0,0.60239324]
[1733898139683,8.58e-05,97720.0,97719.0,0.68576117]
[1733898140091,8.58e-05,97720.0,97719.0,0.69476117]
[1733898140297,8.58e-05,97720.0,97719.0,0.60339324]
[1733898144348,0.20458,97761.0,97746.0,0.03]
[1733898144349,0.0456,97761.0,97746.0,0.03]
[1733898144565,0.079,97760.0,97748.0,0.03]
[1733898144776,0.0875667,97760.0,97750.0,0.234603]
[1733898144979,0.0875667,97760.0,97752.0,0.03]
[1733898145195,0.0875667,97760.0,97752.0,0.13532524]
[1733898145640,0.08763965,97760.0,97752.0,0.13532524]
[1733898145843,0.08763965,97760.0,97742.0,0.20462]
[1733898145844,0.0121716,97756.0,97754.0,0.03]
[1733898146059,0.00877732,97759.0,97758.0,0.03]
[1733898146267,0.07907295,97760.0,97759.0,0.053]
[1733898146512,0.09124455,97760.0,97759.0,0.15832524]
[1733898146933,0.07907295,97760.0,97759.0,0.15832524]
[1733898147348,0.07907295,97760.0,97759.0,0.36590924]
[1733898147982,0.09124455,97760.0,97759.0,0.36590924]
[1733898148206,0.07907295,97760.0,97759.0,0.36590924]
[1733898148413,0.09124455,97760.0,97759.0,0.36590924]
[1733898148620,0.07907295,97760.0,97759.0,0.36590924]
[1733898149063,0.09124455,97760.0,97759.0,0.36590924]
[1733898149270,0.07907295,97760.0,97759.0,0.36590924]
[1733898149701,0.09124455,97760.0,97759.0,0.36590924]
[1733898150118,0.07907295,97760.0,97759.0,0.36590924]
[1733898150384,0.09124455,97760.0,97759.0,0.36590924]
[1733898150613,0.09124455,97760.0,97759.0,0.16132524]
[1733898151442,7.295e-05,97760.0,97759.0,0.16132524]
[1733898152746,7.295e-05,97760.0,97759.0,0.15832524]
[1733898152968,0.00015875,97760.0,97759.0,0.16132524]
[1733898153174,0.00015875,97760.0,97759.0,0.17032524]
[1733898161480,0.00015875,97760.0,97759.0,0.16732524]
[1733898161680,0.00015875,97760.0,97759.0,0.17132524]
[1733898161970,0.00015875,97760.0,97759.0,0.16232524]
[1733898162176,0.00015875,97760.0,97759.0,0.16732524]
[1733898162579,0.00015875,97760.0,97759.0,0.17132524]
[1733898162930,0.00015875,97760.0,97759.0,0.16232524]
[1733898163342,0.00015875,97760.0,97759.0,0.17132524]
[1733898164710,0.0095395,97783.0,97776.0,0.03]
[1733898164872,0.0095395,97783.0,97759.0,0.82782524]
[1733898164873,0.0121716,97779.0,97778.0,0.03]
[1733898165073,0.0121716,97779.0,97778.0,0.13532524]
[1733898165600,0.00015873,97780.0,97778.0,0.13532524]
[1733898165828,0.00015873,97780.0,97779.0,0.13532524]
[1733898166038,0.01233033,97780.0,97779.0,0.13532524]
[1733898166862,0.01233033,97780.0,97779.0,0.15832524]
[1733898167599,0.02188659,97780.0,97779.0,0.15832524]
[1733898167844,0.00971499,97780.0,97779.0,0.15832524]
[1733898168096,0.00015873,97780.0,97779.0,0.15832524]
[1733898169301,0.00015873,97780.0,97779.0,0.15932524]
[1733898172194,0.00015873,97780.0,97779.0,0.15832524]
[1733898172398,0.00015873,97780.0,97779.0,0.16032524]
[1733898172805,0.00015873,97780.0,97779.0,0.15832524]
[1733898173009,0.00015873,97780.0,97779.0,0.15932524]
[1733898173472,0.00015873,97780.0,97779.0,0.15832524]
[1733898173684,0.00015873,97780.0,97779.0,0.16532524]
[1733898174740,0.00015873,97780.0,97779.0,0.16732524]
[1733898179144,0.09373033,97780.0,97779.0,0.14432524]
[1733898179345,0.14153033,97780.0,97779.0,0.14432524]
[1733898179528,0.15109916,97780.0,97779.0,0.14432524]
[1733898179699,0.16006771,97780.0,97779.0,0.14432524]
[1733898179899,0.16006771,97780.0,97779.0,0.13732524]
[1733898180314,0.16006771,97780.0,97779.0,0.13532524]
[1733898180899,0.16006771,97780.0,97779.0,0.15832524]
[1733898184898,0.15049888,97780.0,97779.0,0.15832524]
[1733898185099,0.16006749,97780.0,97779.0,0.15832524]
[1733898191153,0.15049888,97780.0,97779.0,0.15832524]
[1733898191352,0.16006616,97780.0,97779.0,0.15832524]
[1733898194792,0.36460616,97780.0,97779.0,0.03]
[1733898195633,0.50227913,97780.0,97779.0,0.03]
[1733898195851,0.49302271,97780.0,97779.0,0.03]
[1733898196102,0.49302163,97780.0,97779.0,0.03]
[1733898196314,0.7930198,97780.0,97779.0,0.03]
[1733898196525,0.89812309,97780.0,97779.0,0.03]
[1733898196725,0.89812309,97780.0,97760.0,0.0001714]
[1733898196726,0.7152198,97780.0,97760.0,0.0001714]
[1733898196973,0.43932907,97761.0,97760.0,0.0001714]
[1733898197205,0.35701597,97761.0,97760.0,0.0001714]
[1733898197429,0.36596505,97761.0,97760.0,0.0001714]
[1733898197633,0.35640068,97761.0,97760.0,0.0001714]
[1733898197811,0.35640068,97761.0,97760.0,0.0301714]
[1733898198102,0.3659615,97761.0,97760.0,0.0531714]
[1733898199440,0.0185099,97761.0,97760.0,0.18849664]
[1733898199588,0.02112068,97761.0,97760.0,0.18949664]
[1733898199825,0.0121716,97761.0,97760.0,0.18949664]
[1733898200041,0.0121716,97761.0,97760.0,0.18849664]
[1733898200986,0.0121716,97761.0,97760.0,0.19049664]
[1733898202267,0.0121716,97761.0,97760.0,0.18949664]
[1733898202431,0.0121716,97761.0,97760.0,0.19349664]
[1733898203082,0.02112068,97761.0,97760.0,0.19349664]
[1733898203251,0.02112068,97761.0,97760.0,0.19049664]
[1733898203687,0.02112068,97761.0,97760.0,0.19449664]
[1733898203890,0.02112068,97761.0,97760.0,0.18849664]
[1733898204120,0.02112068,97761.0,97760.0,0.18949664]
[1733898205951,0.02112068,97761.0,97760.0,0.19349664]
[1733898206178,0.02112068,97761.0,97760.0,0.19249664]
[1733898206327,0.02112068,97761.0,97760.0,0.19349664]
[1733898206929,0.02112068,97761.0,97760.0,0.19249664]
[1733898207151,0.02112068,97761.0,97760.0,0.18949664]
[1733898207556,0.03068661,97761.0,97760.0,0.19249664]
[1733898207767,0.03068661,97761.0,97760.0,0.18849664]
[1733898207963,0.03068661,97761.0,97760.0,0.18949664]
[1733898208161,0.03068661,97761.0,97760.0,0.19349664]
[1733898209359,0.03068661,97761.0,97760.0,0.19249664]
[1733898209744,0.03068661,97761.0,97760.0,0.19349664]
[1733898210412,0.02112068,97761.0,97760.0,0.19349664]
[1733898210638,0.03069089,97761.0,97760.0,0.19349664]
[1733898210872,0.03069089,97761.0,97760.0,0.18949664]
[1733898211504,0.03069089,97761.0,97760.0,0.19349664]
[1733898213888,0.03069089,97761.0,97760.0,0.16349664]
[1733898214698,0.02112068,97761.0,97760.0,0.16349664]
[1733898215428,0.02112068,97761.0,97760.0,0.16249664]
[1733898215627,0.02112068,97761.0,97760.0,0.15949664]
[1733898215960,0.0121716,97761.0,97760.0,0.16349664]
[1733898216167,0.0211039,97761.0,97760.0,0.16349664]
[1733898217976,0.0211039,97761.0,97760.0,0.0351714]
[1733898218180,0.0211039,97761.0,97760.0,0.0311714]
[1733898218502,0.0211039,97761.0,97760.0,0.0301714]
[1733898218837,0.0211039,97761.0,97760.0,0.0341714]
[1733898218906,0.0211039,97761.0,97760.0,0.0311714]
[1733898219320,0.1007039,97761.0,97760.0,0.0551714]
[1733898219730,0.1007039,97761.0,97760.0,0.0321714]
[1733898220919,0.1007039,97761.0,97760.0,0.0531714]
[1733898221902,0.1007039,97761.0,97760.0,0.0301714]
[1733898227915,0.0211039,97761.0,97760.0,0.18849664]
[1733898228293,0.0121716,97761.0,97760.0,0.27109664]
[1733898229927,0.0121716,97761.0,97760.0,0.15849664]
[1733898230112,0.0121716,97761.0,97760.0,0.18849664]
[1733898230352,0.01959821,97761.0,97760.0,0.18849664]
[1733898231064,0.01959821,97761.0,97760.0,0.15849664]
[1733898231285,0.01959821,97761.0,97760.0,0.18849664]
[1733898231512,0.01959821,97761.0,97760.0,0.16249664]
[1733898231982,0.01959821,97761.0,97760.0,0.18849664]
[1733898232225,0.01959821,97761.0,97760.0,0.19049664]
[1733898232459,0.01959821,97761.0,97760.0,0.16049664]
[1733898232691,0.01959821,97761.0,97760.0,0.19049664]
[1733898232938,0.01959821,97761.0,97760.0,0.18849664]
[1733898233348,0.01959821,97761.0,97760.0,0.19049664]
[1733898234984,0.01959821,97761.0,97760.0,0.18849664]
[1733898235484,0.01959821,97761.0,97760.0,0.0531714]
[1733898235892,0.01959821,97761.0,97760.0,0.0561714]
[1733898236092,0.01959821,97761.0,97760.0,0.0531714]
[1733898236421,0.01959821,97761.0,97760.0,0.0561714]
[1733898237096,0.01959821,97761.0,97760.0,0.16149664]
[1733898237298,0.01959821,97761.0,97760.0,0.19149664]
[1733898237716,0.0121716,97761.0,97760.0,0.19149664]
[1733898237931,0.01958787,97761.0,97760.0,0.18849664]
[1733898238421,0.01958787,97761.0,97760.0,0.19149664]
[1733898238633,0.00741627,97761.0,97760.0,0.18849664]
[1733898238825,0.01958787,97761.0,97760.0,0.19049664]
[1733898239039,0.0121716,97761.0,97760.0,0.19049664]
[1733898239668,0.0121716,97761.0,97760.0,0.18849664]
[1733898241669,0.0121716,97761.0,97760.0,0.19149664]
[1733898241847,0.0195999,97761.0,97760.0,0.19149664]
[1733898243000,0.0195999,97761.0,97760.0,0.18849664]
[1733898243414,0.0195999,97761.0,97760.0,0.19149664]
[1733898244717,0.0195999,97761.0,97760.0,0.18849664]
[1733898245130,0.0195999,97761.0,97760.0,0.19149664]
[1733898245943,0.0195999,97761.0,97760.0,0.18849664]
[1733898246172,0.0195999,97761.0,97760.0,0.19149664]